[Event "Titled Tuesday Blitz February 14 Late 2023"]
[White "Urazayev, Arystanbek"]
[Black "Stoyanov, Tsvetan"]
[WhiteFideId "13709810"]
[BlackFideId "2917173"]
[WhiteElo "2460"]
[BlackElo "2454"]
[Result "1-0"]
[Round "06"]
[TimeControl "180+2"]
[Date "2023.02.14"]
[WhiteClock "0:00:06"]
[BlackClock "0:00:03"]

1. e4 {[%clk 0:03:00]}  c5 {[%clk 0:03:00]} 2. Nf3 {[%clk 0:03:01]}  d6 {[%clk 0:03:00]} 3. d4 {[%clk 0:03:01]}  cxd4 {[%clk 0:03:01]} 4. Nxd4 {[%clk 0:03:02]}  Nf6 {[%clk 0:03:01]} 5. Nc3 {[%clk 0:03:03]}  a6 {[%clk 0:03:02]} 6. Be2 {[%clk 0:03:03]}  e5 {[%clk 0:03:02]} 7. Nb3 {[%clk 0:03:04]}  Be6 {[%clk 0:03:02]} 8. f4 {[%clk 0:03:04]}  exf4 {[%clk 0:03:00]} 9. Bxf4 {[%clk 0:03:05]}  Nc6 {[%clk 0:03:00]} 10. Qd2 {[%clk 0:03:05]}  d5 {[%clk 0:02:32]} 11. O-O-O {[%clk 0:03:05]}  Nxe4 {[%clk 0:02:25]} 12. Nxe4 {[%clk 0:03:05]}  dxe4 {[%clk 0:02:26]} 13. Qe3 {[%clk 0:03:06]}  Qf6 {[%clk 0:02:18]} 14. Rhf1 {[%clk 0:02:45]}  Be7 {[%clk 0:02:16]} 15. Qxe4 {[%clk 0:02:24]}  Bf5 {[%clk 0:01:52]} 16. Qe3 {[%clk 0:02:05]}  O-O {[%clk 0:01:49]} 17. g4 {[%clk 0:01:59]}  Bg6 {[%clk 0:01:42]} 18. g5 {[%clk 0:01:45]}  Qe6 {[%clk 0:01:36]} 19. h4 {[%clk 0:01:12]}  Qxe3+ {[%clk 0:01:21]} 20. Bxe3 {[%clk 0:01:12]}  Nb4 {[%clk 0:01:20]} 21. Rd7 {[%clk 0:01:12]}  Rfe8 {[%clk 0:01:04]} 22. Bd2 {[%clk 0:01:12]}  Rac8 {[%clk 0:00:46]} 23. c3 {[%clk 0:00:54]}  Nxa2+ {[%clk 0:00:37]} 24. Kd1 {[%clk 0:00:53]}  Be4 {[%clk 0:00:25]} 25. Nd4 {[%clk 0:00:47]}  b5 {[%clk 0:00:13]} 26. Rf4 {[%clk 0:00:33]}  Bc5 {[%clk 0:00:08]} 27. Rfxf7 {[%clk 0:00:31]}  Bxd4 {[%clk 0:00:09]} 28. cxd4 {[%clk 0:00:28]}  Bc2+ {[%clk 0:00:08]} 29. Ke1 {[%clk 0:00:29]}  Bd3 {[%clk 0:00:07]} 30. Rxg7+ {[%clk 0:00:27]}  Kh8 {[%clk 0:00:07]} 31. Rge7 {[%clk 0:00:27]}  Bf5 {[%clk 0:00:06]} 32. Ra7 {[%clk 0:00:22]}  Rxe7 {[%clk 0:00:02]} 33. Rxe7 {[%clk 0:00:22]}  Nc1 {[%clk 0:00:02]} 34. Bxc1 {[%clk 0:00:16]}  Rxc1+ {[%clk 0:00:03]} 35. Kd2 {[%clk 0:00:17]}  Rc2+ {[%clk 0:00:04]} 36. Ke3 {[%clk 0:00:17]}  Rxb2 {[%clk 0:00:04]} 37. d5 {[%clk 0:00:18]}  Rb3+ {[%clk 0:00:02]} 38. Kd4 {[%clk 0:00:18]}  Rb4+ {[%clk 0:00:03]} 39. Kc5 {[%clk 0:00:18]}  Re4 {[%clk 0:00:03]} 40. Rxe4 {[%clk 0:00:17]}  Bxe4 {[%clk 0:00:04]} 41. d6 {[%clk 0:00:18]}  Bf5 {[%clk 0:00:05]} 42. Bd3 {[%clk 0:00:15]}  Bd7 {[%clk 0:00:04]} 43. Be4 {[%clk 0:00:15]}  Kg7 {[%clk 0:00:05]} 44. Bc6 {[%clk 0:00:15]}  Bf5 {[%clk 0:00:04]} 45. Bb7 {[%clk 0:00:14]}  h6 {[%clk 0:00:04]} 46. Bxa6 {[%clk 0:00:10]}  hxg5 {[%clk 0:00:04]} 47. hxg5 {[%clk 0:00:11]}  Kg6 {[%clk 0:00:04]} 48. Bxb5 {[%clk 0:00:06]}  Kxg5 {[%clk 0:00:05]} 49. Bd3 {[%clk 0:00:04]}  Bd7 {[%clk 0:00:04]} 50. Kb6 {[%clk 0:00:05]}  Kf6 {[%clk 0:00:05]} 51. Kc7 {[%clk 0:00:05]}  Be6 {[%clk 0:00:05]} 52. Bc4 {[%clk 0:00:06]}  Bf5 {[%clk 0:00:05]} 53. Ba6 {[%clk 0:00:06]}  Ke5 {[%clk 0:00:04]} 54. Bb5 {[%clk 0:00:06]}  Be6 {[%clk 0:00:04]} 55. Bd7 {[%clk 0:00:06]}  Bd5 {[%clk 0:00:03]} 56. Bh3 {[%clk 0:00:06]} 1-0


[Site "https://www.chess.com"]

[Event "Titled Tuesday Blitz February 14 Late 2023"]
[White "Jaracz, Pawel"]
[Black "Kamsky, Gata"]
[WhiteFideId "1102222"]
[BlackFideId "2000024"]
[WhiteElo "2467"]
[BlackElo "2665"]
[Result "1-0"]
[Round "06"]
[TimeControl "180+2"]
[Date "2023.02.14"]
[WhiteClock "0:00:03"]
[BlackClock "0:00:02"]

1. e4 {[%clk 0:03:00]}  g6 {[%clk 0:02:44]} 2. d4 {[%clk 0:03:00]}  Bg7 {[%clk 0:02:43]} 3. Nc3 {[%clk 0:03:00]}  d6 {[%clk 0:02:40]} 4. Be3 {[%clk 0:02:59]}  a6 {[%clk 0:02:40]} 5. g4 {[%clk 0:02:58]}  b5 {[%clk 0:02:22]} 6. Bg2 {[%clk 0:02:57]}  Bb7 {[%clk 0:02:22]} 7. h4 {[%clk 0:02:56]}  h6 {[%clk 0:02:16]} 8. g5 {[%clk 0:02:54]}  h5 {[%clk 0:02:04]} 9. Nge2 {[%clk 0:02:35]}  e6 {[%clk 0:02:04]} 10. Qd2 {[%clk 0:02:22]}  Ne7 {[%clk 0:02:01]} 11. O-O-O {[%clk 0:02:21]}  Nd7 {[%clk 0:01:55]} 12. d5 {[%clk 0:01:50]}  exd5 {[%clk 0:01:33]} 13. Nxd5 {[%clk 0:01:41]}  Bxd5 {[%clk 0:01:29]} 14. exd5 {[%clk 0:01:41]}  Ne5 {[%clk 0:01:27]} 15. b3 {[%clk 0:01:24]}  O-O {[%clk 0:01:17]} 16. Be4 {[%clk 0:01:18]}  Qd7 {[%clk 0:01:14]} 17. Nd4 {[%clk 0:01:17]}  Ng4 {[%clk 0:01:07]} 18. Bf4 {[%clk 0:01:15]}  Rfe8 {[%clk 0:01:03]} 19. f3 {[%clk 0:01:13]}  Ne5 {[%clk 0:01:02]} 20. Bg3 {[%clk 0:01:12]}  Nf5 {[%clk 0:00:57]} 21. Bxf5 {[%clk 0:01:09]}  gxf5 {[%clk 0:00:57]} 22. Rhe1 {[%clk 0:00:58]}  a5 {[%clk 0:00:50]} 23. Kb1 {[%clk 0:00:54]}  a4 {[%clk 0:00:48]} 24. Qf4 {[%clk 0:00:38]}  axb3 {[%clk 0:00:47]} 25. cxb3 {[%clk 0:00:39]}  c5 {[%clk 0:00:34]} 26. dxc6 {[%clk 0:00:34]}  Nxc6 {[%clk 0:00:27]} 27. Nxf5 {[%clk 0:00:16]}  Rxe1 {[%clk 0:00:20]} 28. Rxe1 {[%clk 0:00:15]}  Be5 {[%clk 0:00:17]} 29. Qe4 {[%clk 0:00:09]}  Qa7 {[%clk 0:00:12]} 30. Re2 {[%clk 0:00:08]}  Bxg3 {[%clk 0:00:09]} 31. Nxg3 {[%clk 0:00:06]}  Qg1+ {[%clk 0:00:09]} 32. Kb2 {[%clk 0:00:04]}  Qxg3 {[%clk 0:00:08]} 33. Qxc6 {[%clk 0:00:04]}  Rf8 {[%clk 0:00:06]} 34. Qe4 {[%clk 0:00:04]}  Rc8 {[%clk 0:00:04]} 35. Rd2 {[%clk 0:00:03]}  Qg1 {[%clk 0:00:02]} 36. Rc2 {[%clk 0:00:03]}  Rb8 {[%clk 0:00:02]} 37. a3 {[%clk 0:00:03]} 1-0


[Site "https://www.chess.com"]

[Event "Titled Tuesday Blitz February 14 Late 2023"]
[White "Samsonkin, Artiom"]
[Black "Sokolovsky, Yahli"]
[WhiteFideId "13503111"]
[BlackFideId "2820242"]
[WhiteElo "2420"]
[BlackElo "2461"]
[Result "1-0"]
[Round "06"]
[TimeControl "180+2"]
[Date "2023.02.14"]
[WhiteClock "0:00:18"]
[BlackClock "0:00:02"]

1. d4 {[%clk 0:02:53]}  d5 {[%clk 0:03:00]} 2. Nf3 {[%clk 0:02:54]}  c6 {[%clk 0:02:54]} 3. c4 {[%clk 0:02:51]}  Nf6 {[%clk 0:02:51]} 4. Nc3 {[%clk 0:02:48]}  e6 {[%clk 0:02:48]} 5. e3 {[%clk 0:02:43]}  Bb4 {[%clk 0:02:42]} 6. Qc2 {[%clk 0:02:37]}  Nbd7 {[%clk 0:02:35]} 7. a3 {[%clk 0:02:34]}  Bxc3+ {[%clk 0:02:31]} 8. bxc3 {[%clk 0:02:35]}  O-O {[%clk 0:02:27]} 9. cxd5 {[%clk 0:02:33]}  exd5 {[%clk 0:02:25]} 10. Bd3 {[%clk 0:02:32]}  Re8 {[%clk 0:02:21]} 11. O-O {[%clk 0:02:33]}  Ne4 {[%clk 0:02:05]} 12. c4 {[%clk 0:02:30]}  Nb6 {[%clk 0:01:56]} 13. Ne5 {[%clk 0:02:15]}  f6 {[%clk 0:01:48]} 14. cxd5 {[%clk 0:02:10]}  cxd5 {[%clk 0:01:29]} 15. f3 {[%clk 0:01:48]}  fxe5 {[%clk 0:01:17]} 16. fxe4 {[%clk 0:01:48]}  h6 {[%clk 0:00:36]} 17. dxe5 {[%clk 0:01:40]}  d4 {[%clk 0:00:25]} 18. Bb2 {[%clk 0:01:08]}  dxe3 {[%clk 0:00:24]} 19. Rae1 {[%clk 0:01:08]}  Be6 {[%clk 0:00:22]} 20. Rxe3 {[%clk 0:01:08]}  Rc8 {[%clk 0:00:23]} 21. Qe2 {[%clk 0:01:05]}  Nc4 {[%clk 0:00:22]} 22. Rg3 {[%clk 0:00:39]}  Qb6+ {[%clk 0:00:22]} 23. Rf2 {[%clk 0:00:33]}  Nxb2 {[%clk 0:00:17]} 24. Qxb2 {[%clk 0:00:34]}  Rf8 {[%clk 0:00:09]} 25. Qxb6 {[%clk 0:00:32]}  Rc1+ {[%clk 0:00:09]} 26. Bf1 {[%clk 0:00:32]}  axb6 {[%clk 0:00:10]} 27. Rxf8+ {[%clk 0:00:29]}  Kxf8 {[%clk 0:00:11]} 28. Kf2 {[%clk 0:00:28]}  Rc2+ {[%clk 0:00:10]} 29. Ke1 {[%clk 0:00:27]}  Ra2 {[%clk 0:00:10]} 30. Rg6 {[%clk 0:00:27]}  Kf7 {[%clk 0:00:08]} 31. Rg3 {[%clk 0:00:27]}  Ra1+ {[%clk 0:00:07]} 32. Kf2 {[%clk 0:00:27]}  Ra2+ {[%clk 0:00:08]} 33. Kg1 {[%clk 0:00:27]}  Ra1 {[%clk 0:00:09]} 34. Rc3 {[%clk 0:00:22]}  b5 {[%clk 0:00:05]} 35. Kf2 {[%clk 0:00:22]}  Kg6 {[%clk 0:00:02]} 36. Bxb5 {[%clk 0:00:21]}  Ra2+ {[%clk 0:00:02]} 37. Kg3 {[%clk 0:00:21]}  Rd2 {[%clk 0:00:02]} 38. a4 {[%clk 0:00:20]}  Rb2 {[%clk 0:00:02]} 39. Rc7 {[%clk 0:00:20]}  Rb3+ {[%clk 0:00:02]} 40. Kf2 {[%clk 0:00:18]}  Rb2+ {[%clk 0:00:03]} 41. Ke3 {[%clk 0:00:18]}  Rb3+ {[%clk 0:00:03]} 42. Kd4 {[%clk 0:00:18]}  Bg4 {[%clk 0:00:02]} 43. h3 {[%clk 0:00:18]}  Bd1 {[%clk 0:00:01]} 44. Rxb7 {[%clk 0:00:18]}  Rb4+ {[%clk 0:00:02]} 45. Kc5 {[%clk 0:00:18]}  Rxe4 {[%clk 0:00:02]} 46. Bd3 {[%clk 0:00:18]} 1-0


[Site "https://www.chess.com"]

[Event "Titled Tuesday Blitz February 14 Late 2023"]
[White "Domingo Nunez, Ruben"]
[Black "Naroditsky, Daniel"]
[WhiteFideId "22245570"]
[BlackFideId "2026961"]
[WhiteElo "2416"]
[BlackElo "2618"]
[Result "0-1"]
[Round "06"]
[TimeControl "180+2"]
[Date "2023.02.14"]
[WhiteClock "0:00:02"]
[BlackClock "0:00:02"]

1. b3 {[%clk 0:03:00]}  d5 {[%clk 0:03:00]} 2. Bb2 {[%clk 0:03:00]}  Bf5 {[%clk 0:03:00]} 3. Nf3 {[%clk 0:03:00]}  e6 {[%clk 0:03:01]} 4. e3 {[%clk 0:03:01]}  h6 {[%clk 0:03:01]} 5. Be2 {[%clk 0:03:02]}  Nf6 {[%clk 0:03:02]} 6. O-O {[%clk 0:03:03]}  Be7 {[%clk 0:03:03]} 7. h3 {[%clk 0:03:03]}  O-O {[%clk 0:03:03]} 8. c4 {[%clk 0:03:04]}  c6 {[%clk 0:03:04]} 9. d4 {[%clk 0:03:04]}  Nbd7 {[%clk 0:03:04]} 10. Nc3 {[%clk 0:03:05]}  Ne4 {[%clk 0:03:04]} 11. Rc1 {[%clk 0:03:05]}  a5 {[%clk 0:03:04]} 12. Na4 {[%clk 0:03:04]}  Bd6 {[%clk 0:03:03]} 13. Bd3 {[%clk 0:02:59]}  Qf6 {[%clk 0:03:03]} 14. Nc3 {[%clk 0:02:32]}  Bb4 {[%clk 0:02:17]} 15. Na4 {[%clk 0:01:51]}  Bd6 {[%clk 0:02:01]} 16. Nc3 {[%clk 0:01:51]}  Bb4 {[%clk 0:01:51]} 17. Na4 {[%clk 0:01:51]}  Be7 {[%clk 0:01:45]} 18. Nc3 {[%clk 0:01:47]}  Qg6 {[%clk 0:01:45]} 19. Kh1 {[%clk 0:01:36]}  Nxf2+ {[%clk 0:01:28]} 20. Rxf2 {[%clk 0:01:26]}  Bxd3 {[%clk 0:01:29]} 21. Ne2 {[%clk 0:01:16]}  Be4 {[%clk 0:01:23]} 22. Nf4 {[%clk 0:01:16]}  Qg3 {[%clk 0:01:21]} 23. Qe2 {[%clk 0:01:11]}  Bd6 {[%clk 0:01:17]} 24. Ne5 {[%clk 0:00:53]}  Nxe5 {[%clk 0:01:01]} 25. dxe5 {[%clk 0:00:54]}  Be7 {[%clk 0:00:53]} 26. Nh5 {[%clk 0:00:50]}  Qg6 {[%clk 0:00:27]} 27. Nf4 {[%clk 0:00:27]}  Qg5 {[%clk 0:00:26]} 28. Nh5 {[%clk 0:00:21]}  a4 {[%clk 0:00:20]} 29. b4 {[%clk 0:00:16]}  Rad8 {[%clk 0:00:15]} 30. Rf4 {[%clk 0:00:16]}  Qg6 {[%clk 0:00:15]} 31. Rg4 {[%clk 0:00:16]}  Bg5 {[%clk 0:00:13]} 32. Nf4 {[%clk 0:00:07]}  Qh7 {[%clk 0:00:14]} 33. h4 {[%clk 0:00:07]}  Bxf4 {[%clk 0:00:11]} 34. Rxf4 {[%clk 0:00:08]}  Bd3 {[%clk 0:00:10]} 35. Qg4 {[%clk 0:00:08]}  dxc4 {[%clk 0:00:11]} 36. Bd4 {[%clk 0:00:07]}  h5 {[%clk 0:00:07]} 37. Qg3 {[%clk 0:00:07]}  Qg6 {[%clk 0:00:07]} 38. Qf2 {[%clk 0:00:07]}  Rd5 {[%clk 0:00:04]} 39. Rf3 {[%clk 0:00:07]}  Bf5 {[%clk 0:00:04]} 40. Rg3 {[%clk 0:00:07]}  Bg4 {[%clk 0:00:04]} 41. Rxc4 {[%clk 0:00:07]}  a3 {[%clk 0:00:03]} 42. Rc3 {[%clk 0:00:05]}  Ra8 {[%clk 0:00:03]} 43. Kh2 {[%clk 0:00:05]}  Qe4 {[%clk 0:00:03]} 44. Qf1 {[%clk 0:00:02]}  Rb5 {[%clk 0:00:03]} 45. Qc4 {[%clk 0:00:03]}  Qd5 {[%clk 0:00:03]} 46. Qd3 {[%clk 0:00:03]}  Qxa2 {[%clk 0:00:02]} 47. e4 {[%clk 0:00:02]}  Rxb4 {[%clk 0:00:02]} 48. Qe3 {[%clk 0:00:01]}  Qb2 {[%clk 0:00:02]} 49. Bc5 {[%clk 0:00:01]}  Rb5 {[%clk 0:00:02]} 50. Bxa3 {[%clk 0:00:02]}  Qa2 {[%clk 0:00:02]} 51. Bd6 {[%clk 0:00:02]}  Rb2 {[%clk 0:00:02]} 0-1


[Site "https://www.chess.com"]

[Event "Titled Tuesday Blitz February 14 Late 2023"]
[White "Bernadskiy, Vitaliy"]
[Black "Sanal, Vahap"]
[WhiteFideId "14100371"]
[BlackFideId "6300545"]
[WhiteElo "2592"]
[BlackElo "2600"]
[Result "0-1"]
[Round "06"]
[TimeControl "180+2"]
[Date "2023.02.14"]
[WhiteClock "0:00:01"]
[BlackClock "0:00:11"]

1. d4 {[%clk 0:03:00]}  d5 {[%clk 0:02:58]} 2. Nc3 {[%clk 0:03:01]}  Nf6 {[%clk 0:02:56]} 3. Bf4 {[%clk 0:03:02]}  e6 {[%clk 0:02:56]} 4. e3 {[%clk 0:03:02]}  a6 {[%clk 0:02:56]} 5. g4 {[%clk 0:03:02]}  c5 {[%clk 0:02:56]} 6. g5 {[%clk 0:03:02]}  Nfd7 {[%clk 0:02:56]} 7. Nf3 {[%clk 0:02:56]}  Nc6 {[%clk 0:02:56]} 8. h4 {[%clk 0:02:50]}  Be7 {[%clk 0:02:55]} 9. Bg2 {[%clk 0:02:26]}  b5 {[%clk 0:02:55]} 10. O-O {[%clk 0:02:26]}  b4 {[%clk 0:02:54]} 11. Ne2 {[%clk 0:02:16]}  a5 {[%clk 0:02:54]} 12. Ng3 {[%clk 0:02:15]}  Ba6 {[%clk 0:02:52]} 13. Re1 {[%clk 0:02:15]}  O-O {[%clk 0:02:53]} 14. e4 {[%clk 0:01:56]}  Nb6 {[%clk 0:02:38]} 15. Ne5 {[%clk 0:01:46]}  Nxe5 {[%clk 0:02:32]} 16. dxe5 {[%clk 0:01:45]}  d4 {[%clk 0:02:29]} 17. Nh5 {[%clk 0:01:36]}  Qc7 {[%clk 0:02:22]} 18. Qg4 {[%clk 0:01:34]}  Kh8 {[%clk 0:02:18]} 19. Nf6 {[%clk 0:01:14]}  Nc4 {[%clk 0:02:02]} 20. Qg3 {[%clk 0:01:06]}  Rfd8 {[%clk 0:01:49]} 21. b3 {[%clk 0:01:04]}  Na3 {[%clk 0:01:46]} 22. h5 {[%clk 0:00:58]}  Nxc2 {[%clk 0:01:40]} 23. g6 {[%clk 0:00:57]}  Nxe1 {[%clk 0:01:31]} 24. h6 {[%clk 0:00:48]}  fxg6 {[%clk 0:00:55]} 25. hxg7+ {[%clk 0:00:35]}  Kxg7 {[%clk 0:00:56]} 26. Qh3 {[%clk 0:00:22]}  Rh8 {[%clk 0:00:54]} 27. Qxe6 {[%clk 0:00:19]}  h5 {[%clk 0:00:27]} 28. Nd5 {[%clk 0:00:17]}  Bc8 {[%clk 0:00:24]} 29. Qf6+ {[%clk 0:00:14]}  Bxf6 {[%clk 0:00:23]} 30. exf6+ {[%clk 0:00:15]}  Kf7 {[%clk 0:00:23]} 31. Nxc7 {[%clk 0:00:13]}  Nxg2 {[%clk 0:00:24]} 32. Kxg2 {[%clk 0:00:12]}  Bb7 {[%clk 0:00:24]} 33. Nxa8 {[%clk 0:00:10]}  Bxe4+ {[%clk 0:00:24]} 34. f3 {[%clk 0:00:09]}  Bxa8 {[%clk 0:00:24]} 35. Rc1 {[%clk 0:00:09]}  Rc8 {[%clk 0:00:22]} 36. Be5 {[%clk 0:00:07]}  Ke6 {[%clk 0:00:18]} 37. Bxd4 {[%clk 0:00:05]}  Rd8 {[%clk 0:00:12]} 38. Bxc5 {[%clk 0:00:03]}  Kxf6 {[%clk 0:00:11]} 39. Rc2 {[%clk 0:00:01]}  Rd3 {[%clk 0:00:11]} 0-1


[Site "https://www.chess.com"]

[Event "Titled Tuesday Blitz February 14 Late 2023"]
[White "Kravtsiv, Martyn"]
[Black "Gutenev, Alexander"]
[WhiteFideId "14113147"]
[BlackFideId "4195540"]
[WhiteElo "2598"]
[BlackElo "2455"]
[Result "1-0"]
[Round "06"]
[TimeControl "180+2"]
[Date "2023.02.14"]
[WhiteClock "0:01:01"]
[BlackClock "0:00:19"]

1. e3 {[%clk 0:03:00]}  Nf6 {[%clk 0:02:58]} 2. Nf3 {[%clk 0:02:59]}  g6 {[%clk 0:02:56]} 3. b3 {[%clk 0:02:59]}  Bg7 {[%clk 0:02:56]} 4. Bb2 {[%clk 0:02:59]}  O-O {[%clk 0:02:56]} 5. Be2 {[%clk 0:02:58]}  b6 {[%clk 0:02:56]} 6. O-O {[%clk 0:02:58]}  Bb7 {[%clk 0:02:57]} 7. c4 {[%clk 0:02:58]}  c5 {[%clk 0:02:50]} 8. d4 {[%clk 0:02:57]}  cxd4 {[%clk 0:02:40]} 9. Nxd4 {[%clk 0:02:56]}  d5 {[%clk 0:02:37]} 10. Nd2 {[%clk 0:02:56]}  Nc6 {[%clk 0:02:36]} 11. Nxc6 {[%clk 0:02:49]}  Bxc6 {[%clk 0:02:36]} 12. Rc1 {[%clk 0:02:50]}  Rc8 {[%clk 0:02:36]} 13. c5 {[%clk 0:02:45]}  Nd7 {[%clk 0:02:23]} 14. Bxg7 {[%clk 0:02:43]}  Kxg7 {[%clk 0:02:23]} 15. cxb6 {[%clk 0:02:35]}  Qxb6 {[%clk 0:02:23]} 16. Nf3 {[%clk 0:02:35]}  e5 {[%clk 0:02:15]} 17. Qd2 {[%clk 0:02:35]}  Rfd8 {[%clk 0:02:12]} 18. h3 {[%clk 0:02:32]}  f6 {[%clk 0:02:11]} 19. Qb2 {[%clk 0:02:28]}  Bb7 {[%clk 0:01:59]} 20. Qa3 {[%clk 0:02:27]}  Kf7 {[%clk 0:01:59]} 21. Nd2 {[%clk 0:02:21]}  Rxc1 {[%clk 0:01:58]} 22. Rxc1 {[%clk 0:02:20]}  Rc8 {[%clk 0:01:57]} 23. Rxc8 {[%clk 0:02:08]}  Bxc8 {[%clk 0:01:58]} 24. e4 {[%clk 0:02:06]}  Bb7 {[%clk 0:01:52]} 25. exd5 {[%clk 0:02:04]}  Bxd5 {[%clk 0:01:52]} 26. Nc4 {[%clk 0:02:04]}  Qc5 {[%clk 0:01:42]} 27. Qxc5 {[%clk 0:01:47]}  Nxc5 {[%clk 0:01:41]} 28. Ne3 {[%clk 0:01:47]}  Be6 {[%clk 0:01:36]} 29. b4 {[%clk 0:01:48]}  Ne4 {[%clk 0:01:34]} 30. a3 {[%clk 0:01:47]}  Nc3 {[%clk 0:01:27]} 31. Ba6 {[%clk 0:01:39]}  Ke7 {[%clk 0:01:19]} 32. Kf1 {[%clk 0:01:38]}  f5 {[%clk 0:01:16]} 33. Ke1 {[%clk 0:01:37]}  f4 {[%clk 0:01:12]} 34. Nd1 {[%clk 0:01:25]}  Nxd1 {[%clk 0:01:04]} 35. Kxd1 {[%clk 0:01:26]}  Bd5 {[%clk 0:01:04]} 36. g3 {[%clk 0:01:24]}  g5 {[%clk 0:00:57]} 37. Kd2 {[%clk 0:01:22]}  Kf6 {[%clk 0:00:51]} 38. a4 {[%clk 0:01:20]}  Bg2 {[%clk 0:00:50]} 39. h4 {[%clk 0:01:19]}  gxh4 {[%clk 0:00:48]} 40. gxh4 {[%clk 0:01:19]}  Kg6 {[%clk 0:00:48]} 41. Be2 {[%clk 0:01:14]}  Bd5 {[%clk 0:00:44]} 42. a5 {[%clk 0:01:12]}  h6 {[%clk 0:00:34]} 43. b5 {[%clk 0:01:10]}  f3 {[%clk 0:00:35]} 44. Bd1 {[%clk 0:01:04]}  Kh5 {[%clk 0:00:34]} 45. Ke3 {[%clk 0:01:03]}  e4 {[%clk 0:00:27]} 46. Bc2 {[%clk 0:01:00]}  Kxh4 {[%clk 0:00:25]} 47. Bxe4 {[%clk 0:00:59]}  Bc4 {[%clk 0:00:18]} 48. b6 {[%clk 0:00:59]}  axb6 {[%clk 0:00:18]} 49. axb6 {[%clk 0:01:00]}  Ba6 {[%clk 0:00:18]} 50. b7 {[%clk 0:01:00]}  Bxb7 {[%clk 0:00:19]} 51. Bxb7 {[%clk 0:01:01]} 1-0


[Site "https://www.chess.com"]

[Event "Titled Tuesday Blitz February 14 Late 2023"]
[White "Avinash, Ramesh"]
[Black "Atanasov, Anthony"]
[WhiteFideId "45018340"]
[BlackFideId "2623897"]
[WhiteElo "2319"]
[BlackElo "2368"]
[Result "1-0"]
[Round "06"]
[TimeControl "180+2"]
[Date "2023.02.14"]
[WhiteClock "0:01:46"]
[BlackClock "0:00:01"]

1. Nf3 {[%clk 0:02:59]}  Nf6 {[%clk 0:02:58]} 2. c4 {[%clk 0:02:59]}  g6 {[%clk 0:02:58]} 3. Nc3 {[%clk 0:02:56]}  d5 {[%clk 0:02:58]} 4. cxd5 {[%clk 0:02:56]}  Nxd5 {[%clk 0:02:59]} 5. h4 {[%clk 0:02:56]}  Nxc3 {[%clk 0:02:50]} 6. bxc3 {[%clk 0:02:54]}  c5 {[%clk 0:02:48]} 7. h5 {[%clk 0:02:53]}  Bg7 {[%clk 0:02:49]} 8. Qa4+ {[%clk 0:02:50]}  Nc6 {[%clk 0:02:45]} 9. h6 {[%clk 0:02:49]}  Bf6 {[%clk 0:02:45]} 10. g3 {[%clk 0:02:46]}  Bd7 {[%clk 0:02:44]} 11. Bg2 {[%clk 0:02:42]}  b5 {[%clk 0:02:22]} 12. Qd1 {[%clk 0:02:42]}  O-O {[%clk 0:02:21]} 13. d4 {[%clk 0:02:33]}  cxd4 {[%clk 0:02:20]} 14. cxd4 {[%clk 0:02:34]}  Bg4 {[%clk 0:02:20]} 15. Rb1 {[%clk 0:02:28]}  Nxd4 {[%clk 0:02:01]} 16. Nxd4 {[%clk 0:02:26]}  Bxd4 {[%clk 0:02:02]} 17. Rxb5 {[%clk 0:02:17]}  Qc7 {[%clk 0:00:27]} 18. Bxa8 {[%clk 0:01:57]}  Rxa8 {[%clk 0:00:24]} 19. Qxd4 {[%clk 0:01:53]}  Qxc1+ {[%clk 0:00:24]} 20. Qd1 {[%clk 0:01:53]}  Qc3+ {[%clk 0:00:01]} 21. Kf1 {[%clk 0:01:53]}  Qc6 {[%clk 0:00:01]} 22. Rd5 {[%clk 0:01:53]}  Rf8 {[%clk 0:00:01]} 23. Rh4 {[%clk 0:01:46]} 1-0


[Site "https://www.chess.com"]